bitfinex/quotes_SOLUSD_20220227
["timestamp","ask_amount","ask_price","bid_price","bid_amount"]
[1645995835092,1.90399441,85.837,85.737,117.0]
[1645995835283,1.90399441,85.837,85.75,13.77]
[1645995835484,1.90399441,85.837,85.752,29.1176579]
[1645995835683,6.0,85.836,85.753,6.0]
[1645995836905,117.0,85.835,85.75,13.77]
[1645995837203,1.8656337,85.832,85.75,13.77]
[1645995837409,117.0,85.83,85.751,6.0]
[1645995837604,117.0,85.828,85.751,6.0]
[1645995837804,117.0,85.826,85.751,6.0]
[1645995838003,117.0,85.824,85.751,6.0]
[1645995838205,1.9451371,85.821,85.751,6.0]
[1645995838505,1.79158992,85.818,85.72,13.77]
[1645995838705,117.0,85.816,85.73,13.77]
[1645995838905,117.0,85.814,85.732,36.11640605]
[1645995839107,1.9286953,85.814,85.733,6.0]
[1645995839306,6.0,85.813,85.733,6.0]
[1645995839608,1.64612393,85.82,85.734,2.74678921]
[1645995839807,6.0,85.819,85.735,6.0]
[1645995840207,6.0,85.819,85.736,2.74678921]
[1645995840407,6.0,85.819,85.74,13.77]
[1645995840609,7.50430345,85.838,85.741,6.0]
[1645995840808,7.50430345,85.838,85.741,8.74678921]
[1645995841206,117.0,85.837,85.742,2.74678921]
[1645995841408,7.5055764,85.836,85.743,6.0]
[1645995841908,7.5055764,85.836,85.745,29.58136018]
[1645995842110,7.5055764,85.836,85.744,2.74678921]
[1645995842111,6.0,85.836,85.762,117.0]
[1645995842307,6.0,85.855,85.77,13.77]
[1645995842510,1.43916987,85.856,85.771,6.0]
[1645995842909,1.43916987,85.856,85.771,8.74678921]
[1645995843910,6.0,85.855,85.771,8.74678921]
[1645995844711,6.0,85.855,85.772,119.74678921]
[1645995844910,6.0,85.877,85.776,117.0]
[1645995845113,6.0,85.877,85.775,36.49021284]
[1645995845114,6.0,85.877,85.79,13.77]
[1645995845312,6.0,85.877,85.792,28.76589161]
[1645995845512,6.0,85.877,85.793,6.0]
[1645995845513,117.0,85.876,85.793,6.0]
[1645995845713,1.79686121,85.873,85.793,6.0]
[1645995845914,123.0,85.872,85.793,6.0]
[1645995846112,1.94065813,85.871,85.793,6.0]
[1645995846313,117.0,85.869,85.793,6.0]
[1645995846512,6.0,85.87,85.748,23.266]
[1645995846513,1.76365901,85.866,85.76,13.77]
[1645995846716,1.76365901,85.866,85.762,6.0]
[1645995846914,117.0,85.864,85.684,2.91141625]
[1645995847117,118.6410879,85.858,85.7,13.77]
[1645995847315,70.15,85.851,85.7,13.77]
[1645995847517,7.59772059,85.857,85.7,13.77]
[1645995847518,1.44381298,85.808,85.7,13.77]
[1645995847730,1.49259411,85.805,85.68,13.77]
[1645995847917,117.0,85.799,85.67,13.77]
[1645995848216,1.43691766,85.796,85.66,13.77]
[1645995848415,117.0,85.769,85.656,34.77015421]
[1645995848616,1.52072628,85.766,85.656,34.77015421]
[1645995848816,117.0,85.782,85.673,117.0]
[1645995849016,19.57751835,85.795,85.68,13.77]
[1645995849017,6.0,85.781,85.68,13.77]
[1645995849216,6.0,85.781,85.681,6.0]
[1645995849419,6.0,85.781,85.68,13.77]
[1645995849618,2.74678921,85.78,85.68,13.77]
[1645995849817,1.67879344,85.777,85.672,30.39196706]
[1645995850017,6.0,85.776,85.672,30.39196706]
[1645995850221,6.0,85.776,85.672,33.13875627]
[1645995850418,6.0,85.776,85.68,13.77]
[1645995850616,6.0,85.795,85.68,13.77]
[1645995850817,117.0,85.794,85.68,13.77]
[1645995851019,1.92608344,85.791,85.68,13.77]
[1645995851217,1.61393644,85.788,85.68,13.77]
[1645995851417,1.45863522,85.785,85.68,13.77]
[1645995851620,117.0,85.783,85.68,13.77]
[1645995851818,117.0,85.781,85.66,13.77]
[1645995852021,117.0,85.779,85.66,13.77]
[1645995852219,1.89357438,85.776,85.66,13.77]
[1645995852418,117.0,85.774,85.66,13.77]
[1645995852618,117.0,85.767,85.646,32.13701489]
[1645995852821,1.75097767,85.766,85.646,32.13701489]
[1645995853019,117.0,85.764,85.646,32.13701489]
[1645995853219,117.0,85.759,85.646,32.13701489]
[1645995853420,1.84172505,85.756,85.646,32.13701489]
[1645995853619,117.0,85.754,85.646,32.13701489]
[1645995853820,117.0,85.752,85.646,32.13701489]
[1645995854020,7.66767734,85.751,85.65,13.77]
[1645995854221,117.0,85.75,85.651,6.0]
[1645995854421,6.0,85.749,85.651,8.74678921]
[1645995854821,6.0,85.749,85.652,2.74678921]
[1645995855023,6.0,85.765,85.653,6.0]
[1645995855221,117.0,85.764,85.653,6.0]
[1645995855424,117.0,85.762,85.654,2.74678921]
[1645995855622,1.44943845,85.759,85.655,6.0]
[1645995855821,117.0,85.757,85.66,13.77]
[1645995856022,1.64454678,85.754,85.662,35.53263495]
[1645995856221,1.64454678,85.754,85.663,6.0]
[1645995856222,117.0,85.752,85.663,6.0]
[1645995856422,7.42497587,85.751,85.663,6.0]
[1645995856624,117.0,85.75,85.664,6.0]
[1645995856922,117.0,85.75,85.662,35.53263495]
[1645995856923,1.49830395,85.747,85.663,6.0]
[1645995857123,117.0,85.745,85.662,35.53263495]
[1645995857326,1.41620129,85.742,85.662,35.53263495]
[1645995857524,6.0,85.741,85.662,35.53263495]
[1645995858325,117.0,85.757,85.662,35.53263495]
[1645995858527,27.19135924,85.746,85.644,4.667]
[1645995858725,27.19135924,85.746,85.643,2.74678921]
[1645995858726,117.0,85.739,85.643,2.74678921]
[1645995858926,117.0,85.737,85.619,7.41378921]
[1645995859129,1.4347004,85.736,85.62,6.0]
[1645995859326,117.0,85.734,85.62,6.0]
[1645995859527,1.78976462,85.719,85.621,29.64311039]
[1645995859726,6.0,85.733,85.621,29.64311039]
[1645995859727,1.94409104,85.729,85.621,29.64311039]
[1645995859926,6.0,85.728,85.622,6.0]
[1645995860331,6.0,85.728,85.622,8.74678921]
[1645995860529,6.0,85.733,85.623,7.41478921]
[1645995860730,6.0,85.733,85.624,6.0]
[1645995861128,6.0,85.733,85.625,2.74678921]
[1645995861329,6.0,85.733,85.626,6.0]
[1645995861530,25.0211999,85.732,85.626,6.0]
[1645995861732,1.74833625,85.729,85.626,6.0]
[1645995861929,6.0,85.728,85.622,6.0]
[1645995862131,31.0211999,85.728,85.622,6.0]
[1645995862332,1.43319233,85.727,85.622,6.0]
[1645995862531,6.0,85.726,85.622,6.0]
[1645995863135,6.0,85.726,85.623,7.41478921]
[1645995863333,6.0,85.726,85.624,6.0]
[1645995863932,6.0,85.726,85.622,6.0]
[1645995864134,6.0,85.726,85.625,2.74678921]
[1645995864333,6.0,85.726,85.626,10.668]
[1645995864538,6.0,85.733,85.63,13.77]
[1645995864735,6.0,85.733,85.631,6.0]
[1645995865135,6.0,85.733,85.631,8.74678921]
[1645995865335,6.0,85.733,85.632,2.74678921]
[1645995865535,6.0,85.733,85.634,35.20831364]
[1645995865739,6.0,85.733,85.635,6.0]
[1645995867434,6.0,85.733,85.634,35.20831364]
[1645995867634,6.0,85.733,85.635,6.0]
[1645995868634,1.68517548,85.732,85.635,6.0]
[1645995868834,117.0,85.73,85.635,6.0]
[1645995869036,6.0,85.731,85.621,4.668]
[1645995869037,117.0,85.728,85.621,4.668]
[1645995869235,1.67309915,85.727,85.61,16.51678921]
[1645995869435,1.45383473,85.724,85.611,6.0]
[1645995869736,1.71766554,85.721,85.611,8.74678921]
[1645995869937,117.0,85.719,85.612,33.42732124]
[1645995870136,117.0,85.719,85.613,6.0]
[1645995870137,7.94484721,85.718,85.613,6.0]
[1645995870339,7.94484721,85.718,85.613,8.74678921]
[1645995870539,7.94484721,85.718,85.614,2.74678921]
[1645995870836,7.94484721,85.718,85.615,6.0]
[1645995871237,7.94484721,85.718,85.616,7.41478921]
[1645995871439,117.0,85.717,85.617,6.0]
[1645995871640,117.0,85.715,85.616,2.74678921]
[1645995871938,1.46107471,85.712,85.616,2.74678921]
[1645995872137,117.0,85.71,85.616,2.74678921]
[1645995872338,117.0,85.708,85.616,2.74678921]
[1645995872544,7.43850434,85.707,85.616,2.74678921]
[1645995872838,6.0,85.709,85.616,2.74678921]
[1645995873039,6.0,85.709,85.617,6.0]
[1645995873642,117.0,85.71,85.617,8.74678921]
[1645995873839,7.69282038,85.709,85.617,8.74678921]
[1645995874039,1.69282038,85.709,85.617,8.74678921]
[1645995874243,6.0,85.708,85.617,8.74678921]
[1645995875546,6.0,85.708,85.618,117.0]
[1645995875748,1.69291944,85.72,85.631,30.84893127]
[1645995875947,6.0,85.719,85.632,6.0]
[1645995876347,6.0,85.719,85.632,8.74678921]
[1645995876547,7.59217549,85.739,85.633,7.41478921]
[1645995876748,7.59217549,85.739,85.634,6.0]
[1645995877047,7.59217549,85.739,85.635,121.668]
[1645995877248,6.0,85.739,85.637,117.0]
[1645995877447,1.81417783,85.751,85.651,28.94237601]
[1645995877852,1.81417783,85.751,85.652,6.0]
[1645995878058,1.81417783,85.751,85.652,8.74678921]
[1645995878259,26.84883112,85.75,85.652,2.74678921]
[1645995878460,117.0,85.749,85.596,78.4912]
[1645995878661,118.59772059,85.739,85.597,47.085]
[1645995878958,13.77,85.74,85.57,13.77]
[1645995878959,1.59772059,85.714,85.57,13.77]
[1645995879259,17.5317,85.69,85.575,35.70434197]
[1645995879458,117.0,85.689,85.575,35.70434197]
[1645995879659,117.0,85.677,85.521,112.6]
[1645995879862,1.59772059,85.672,85.522,29.4156]
[1645995880059,117.0,85.67,85.531,22.90670313]
[1645995880261,1.5681394,85.669,85.541,117.0]
[1645995880459,117.0,85.667,85.542,4.672]
[1645995880662,117.0,85.665,85.542,30.93039388]
[1645995880860,4.65,85.658,85.542,26.25839388]
[1645995881060,117.0,85.649,85.542,26.25839388]
[1645995881262,117.0,85.647,85.5,13.77]
[1645995881463,1.48161782,85.644,85.5,13.77]
[1645995881662,117.0,85.639,85.5,13.77]
[1645995881861,117.0,85.637,85.504,6.0]
[1645995882160,1.60644667,85.634,85.504,6.0]
[1645995882361,117.0,85.632,85.5,13.77]
[1645995882561,117.0,85.632,85.464,117.0]
[1645995882562,1.76727422,85.609,85.48,13.77]
[1645995882762,13.77,85.6,85.468,112.6]
[1645995882961,13.77,85.6,85.46,13.77]
[1645995882962,117.0,85.597,85.448,2.52314997]
[1645995883166,1.79479304,85.596,85.445,21.35576157]
[1645995883362,4.65,85.588,85.451,29.79205567]
[1645995883662,117.0,85.579,85.451,29.79205567]
[1645995883870,117.0,85.577,85.451,29.79205567]
[1645995884060,17.5568,85.57,85.451,29.79205567]
[1645995884261,6.0,85.569,85.451,29.79205567]
[1645995884761,6.0,85.569,85.453,2.315666]
[1645995884962,6.0,85.573,85.454,6.0]
[1645995885164,6.0,85.573,85.454,59.79785316]
[1645995885362,6.0,85.592,85.455,34.92442948]
[1645995885565,6.0,85.592,85.457,117.0]
[1645995885766,6.0,85.592,85.47,13.77]
[1645995885968,6.0,85.592,85.471,31.66123424]
[1645995886166,117.0,85.591,85.471,25.66123424]
[1645995886367,4.65,85.578,85.471,25.66123424]
[1645995886566,117.0,85.576,85.471,25.66123424]
[1645995886766,117.0,85.574,85.471,25.66123424]
[1645995886966,7.51352797,85.573,85.471,25.66123424]
[1645995887168,1.61354331,85.574,85.471,25.66123424]
[1645995887368,117.0,85.572,85.471,25.66123424]
[1645995887566,117.0,85.57,85.471,25.66123424]
[1645995887768,6.0,85.569,85.471,25.66123424]
[1645995887969,6.0,85.569,85.472,6.0]
[1645995888369,6.0,85.585,85.472,6.0]
[1645995888977,1.46283395,85.586,85.48,13.77]
[1645995889171,6.0,85.585,85.481,6.0]
[1645995889473,77.55361396,85.607,85.483,3.01595521]
[1645995889670,4.65,85.668,85.485,146.31309576]
[1645995889671,6.0,85.606,85.485,146.31309576]
[1645995889870,6.0,85.63,85.486,8.24741753]
[1645995890075,2.74678921,85.605,85.486,6.0]
[1645995890470,117.0,85.603,85.486,6.0]
[1645995890678,4.65,85.588,85.449,22.7858]
[1645995890871,117.0,85.559,85.42,13.77]
[1645995891071,1.58118863,85.556,85.416,48.0532]
[1645995891272,117.0,85.554,85.42,13.77]
[1645995891473,117.0,85.552,85.432,34.6901586]
[1645995891674,6.0,85.551,85.432,34.6901586]
[1645995891872,10.25958549,85.553,85.433,8.94562409]
[1645995892073,10.25958549,85.553,85.433,8.91243239]
[1645995892274,6.0,85.553,85.433,8.91243239]
[1645995892472,1.68357652,85.551,85.434,2.74678921]
[1645995892672,1.68357652,85.551,85.433,8.91243239]
[1645995892673,6.0,85.55,85.435,6.0]
[1645995892873,6.0,85.55,85.44,13.77]
[1645995893072,6.0,85.55,85.42,13.77]
[1645995893073,23.5603,85.55,85.42,13.77]
[1645995893273,4.68953592,85.549,85.41,13.77]
[1645995893475,4.65,85.508,85.393,4.678]
[1645995893672,4.65,85.508,85.354,2.98723858]
[1645995893673,1.86238059,85.505,85.354,2.98723858]
[1645995893872,117.0,85.503,85.354,2.52687367]
[1645995894074,6.0,85.502,85.432,33.952534]
[1645995894673,6.0,85.516,85.432,33.952534]
[1645995895080,2.74678921,85.532,85.432,33.952534]
[1645995895274,7.68945171,85.531,85.432,33.952534]
[1645995895477,6.0,85.531,85.432,33.952534]
[1645995895676,6.0,85.535,85.432,33.952534]
[1645995896086,2.74678921,85.53,85.432,33.952534]
[1645995896277,6.0,85.529,85.432,33.952534]
[1645995896881,6.0,85.532,85.433,6.0]
[1645995897278,2.74678921,85.531,85.433,6.0]
[1645995897480,2.74678921,85.531,85.432,33.952534]
[1645995897481,117.0,85.529,85.432,33.952534]
[1645995897678,1.78815976,85.529,85.432,33.952534]
[1645995897879,6.0,85.528,85.432,33.952534]
[1645995898178,31.75005283,85.528,85.432,33.952534]
[1645995898378,25.75005283,85.527,85.432,33.952534]
[1645995898579,7.66758908,85.526,85.433,6.0]
[1645995898778,6.0,85.526,85.433,6.0]
[1645995898979,6.0,85.526,85.433,8.84695023]
[1645995899179,6.0,85.535,85.434,4.679]
[1645995899381,6.0,85.535,85.435,6.0]
[1645995899579,6.0,85.539,85.436,4.679]
[1645995899779,97.33267313,85.54,85.451,31.23404342]
[1645995899979,97.33267313,85.54,85.452,10.678]
[1645995900181,97.33267313,85.54,85.452,13.62379548]
[1645995900380,97.33267313,85.54,85.452,8.94579548]
[1645995900981,97.33267313,85.54,85.453,4.678]
[1645995901179,97.33267313,85.54,85.454,6.0]
[1645995901380,97.33267313,85.54,85.455,4.678]
[1645995901581,97.33267313,85.54,85.456,6.0]
[1645995901778,97.33267313,85.54,85.471,26.77007517]
[1645995901982,97.33267313,85.54,85.472,6.0]
[1645995902379,97.33267313,85.54,85.473,2.74678921]
[1645995902579,97.33267313,85.54,85.474,10.678]
[1645995902780,1.70862549,85.619,85.475,117.0]
[1645995902983,6.0,85.618,85.478,2.87168912]
[1645995903180,63.76354711,85.618,85.49,13.77]
[1645995903380,1.41749151,85.616,85.492,34.31560825]
[1645995903581,117.0,85.614,85.493,6.0]
[1645995903780,1.46433169,85.611,85.492,34.31560825]
[1645995903981,117.0,85.609,85.492,34.31560825]
[1645995904181,117.0,85.609,85.448,2.97051832]
[1645995904182,117.0,85.607,85.448,2.97051832]
[1645995904384,4.65,85.598,85.462,23.0234]
[1645995904586,1.62653053,85.588,85.462,23.0234]
[1645995904782,1.52712373,85.585,85.462,23.0234]
[1645995904982,6.0,85.587,85.462,23.0234]
[1645995904983,117.0,85.583,85.462,23.0234]
[1645995905182,117.0,85.579,85.463,27.38213718]
[1645995905382,1.50601364,85.576,85.463,27.38213718]
[1645995905584,6.0,85.575,85.464,117.0]
[1645995905783,8.74678921,85.578,85.471,117.0]
[1645995905984,82.35715726,85.552,85.473,117.0]
[1645995906293,6.0,85.578,85.477,117.0]
[1645995906484,118.78279354,85.618,85.49,13.77]
[1645995906684,17.5454,85.59,85.492,35.86606285]
[1645995906884,1.87563301,85.589,85.493,6.0]
[1645995907984,6.0,85.588,85.494,117.0]
[1645995908184,6.0,85.588,85.493,6.0]
[1645995908486,1.87563301,85.589,85.493,6.0]
[1645995909186,1.87563301,85.589,85.492,35.86606285]
[1645995909187,117.0,85.579,85.492,35.86606285]
[1645995909588,1.83102306,85.576,85.492,35.86606285]
[1645995909785,1.48284464,85.573,85.492,35.86606285]
[1645995909986,6.0,85.572,85.492,35.86606285]
[1645995910188,31.19384376,85.572,85.492,35.86606285]
[1645995910486,17.5557,85.54,85.492,35.86606285]
[1645995910786,1.81335602,85.569,85.492,35.86606285]
[1645995911088,1.46592163,85.587,85.492,35.86606285]
[1645995911287,6.0,85.586,85.493,117.0]
[1645995911499,6.0,85.586,85.495,117.0]
[1645995911710,6.0,85.598,85.5,13.77]
[1645995911885,6.0,85.599,85.501,123.0]
[1645995912090,36.15899558,85.599,85.501,2.74678921]
[1645995912288,34.60178081,85.599,85.501,2.74678921]
[1645995912489,173.54241378,85.598,85.492,35.86606285]
[1645995912689,18.97808619,85.55,85.46,13.77]
[1645995912990,6.0,85.549,85.46,13.77]
[1645995913190,7.73704555,85.549,85.46,13.77]
[1645995913589,7.73704555,85.549,85.462,36.56190854]
[1645995913791,7.73704555,85.549,85.463,6.0]
[1645995914090,117.0,85.539,85.462,36.56190854]
[1645995914289,1.59502016,85.536,85.462,36.56190854]
[1645995914490,6.0,85.535,85.462,36.56190854]
[1645995914890,6.0,85.541,85.462,36.56190854]
[1645995915090,58.5369,85.54,85.462,36.56190854]
[1645995915291,6.0,85.539,85.462,36.56190854]
[1645995915494,6.0,85.546,85.462,36.56190854]
[1645995915890,6.0,85.563,85.463,117.0]
[1645995916090,89.59799287,85.546,85.464,6.0]
[1645995916294,7.66005359,85.545,85.44,13.77]
[1645995916492,117.0,85.544,85.438,22.5419]
[1645995916692,1.90754449,85.543,85.438,22.5419]
[1645995916894,1.89318794,85.54,85.438,22.5419]
[1645995917095,117.0,85.538,85.42,13.77]
[1645995917298,212.0,85.519,85.4,13.77]
[1645995917496,212.0,85.519,85.316,188.9]
[1645995917497,4.65,85.508,85.316,188.9]
[1645995917694,1.69392666,85.518,85.307,2.96649228]
[1645995917695,12.21715264,85.383,85.307,2.96649228]
[1645995917895,12.21715264,85.383,85.293,17.2971]
[1645995917896,6.0,85.382,85.293,17.2971]
[1645995918099,6.0,85.382,85.294,2.91424574]
[1645995918297,17.5894,85.38,85.272,35.3447326]
[1645995918500,6.0,85.379,85.272,35.3447326]
[1645995919000,6.0,85.379,85.246,308.32113228]
[1645995919001,7.74676496,85.379,85.333,0.00037546]
[1645995919297,1.94173033,85.377,85.333,0.00037546]
[1645995919499,4.65,85.368,85.333,0.00037546]
[1645995919700,6.0,85.367,85.333,0.00037546]
[1645995920298,6.0,85.372,85.333,0.00037546]
[1645995920499,1.63935526,85.379,85.333,0.00037546]
[1645995920699,4.686,85.378,85.333,0.00037546]
[1645995921103,1.63935526,85.379,85.333,0.00037546]
[1645995922301,1.63935526,85.379,85.334,2.74678921]
[1645995922505,12.21715264,85.383,85.335,35.64307779]
[1645995922702,99.7437,85.421,85.336,6.0]
[1645995922703,23.3064,85.421,85.336,6.0]
[1645995922903,1.83067408,85.459,85.336,8.74678921]
[1645995923203,1.83067408,85.459,85.337,2.74678921]
[1645995923402,101.1123,85.486,85.351,29.32066929]
[1645995923603,1.60912234,85.485,85.352,6.0]
[1645995923802,1.60912234,85.485,85.352,11.81991569]
[1645995924002,1.60912234,85.485,85.352,38.05741208]
[1645995924207,1.80971566,85.479,85.353,5.21777106]
[1645995924603,1.80971566,85.479,85.354,2.74678921]
[1645995924802,4.682,85.478,85.354,2.74678921]
[1645995925005,1.80971566,85.479,85.355,6.0]
[1645995925304,1.80971566,85.479,85.353,2.47098185]
[1645995925305,117.0,85.469,85.36,13.77]
[1645995925603,117.0,85.467,85.351,29.32066929]
[1645995925807,117.0,85.465,85.351,29.32066929]
[1645995926003,6.23983416,85.466,85.351,29.32066929]
[1645995926004,7.54426095,85.464,85.351,29.32066929]
[1645995926203,7.54426095,85.464,85.352,2.42660454]
[1645995926404,7.54426095,85.464,85.36,13.77]
[1645995926405,6.0,85.464,85.36,13.77]
[1645995926603,6.0,85.465,85.361,9.06063914]
[1645995926824,10.683,85.484,85.352,2.74678921]
[1645995927025,1.59482576,85.475,85.353,6.0]
[1645995927323,1.59482576,85.475,85.351,29.32066929]
[1645995927324,118.57069799,85.463,85.335,2.74678921]
[1645995927530,117.0,85.449,85.321,2.27135276]
[1645995927729,117.0,85.447,85.322,6.0]
[1645995927931,7.37412119,85.446,85.33,13.77]
[1645995928126,1.37412119,85.446,85.331,6.0]
[1645995928326,20.27266223,85.478,85.331,6.0]
[1645995928327,6.04866074,85.473,85.334,2.74678921]
[1645995928528,1.67369598,85.484,85.336,117.0]
[1645995928727,1.67369598,85.484,85.351,117.0]
[1645995928926,1.67369598,85.484,85.337,8.85563935]
[1645995928927,1.67369598,85.484,85.36,13.77]
[1645995929126,117.0,85.482,85.352,28.94801429]
[1645995929329,69.30762513,85.462,85.353,6.0]
[1645995929528,69.30762513,85.462,85.341,2.95615961]
[1645995929529,1.70019148,85.46,85.341,2.95615961]
[1645995929728,1.35880582,85.457,85.331,2.35431316]
[1645995929932,1.53266234,85.448,85.33,13.77]
[1645995930132,1.79464746,85.445,85.33,13.77]
[1645995930328,1.83783039,85.442,85.331,34.60884126]
[1645995930529,6.0,85.441,85.332,117.0]
[1645995930738,6.0,85.441,85.331,40.60884126]
[1645995930739,1.7725073,85.472,85.335,2.74363951]
[1645995930932,6.0,85.461,85.338,2.81850804]
[1645995931132,6.0,85.461,85.351,117.0]
[1645995931333,6.0,85.461,85.355,117.0]
[1645995931537,6.0,85.461,85.372,34.76494601]
[1645995931733,6.0,85.461,85.373,8.89861395]
[1645995931936,17.5743,85.48,85.373,6.0]
[1645995932132,1.61810258,85.461,85.372,32.35673895]
[1645995932538,1.4020988,85.478,85.373,2.99497008]
[1645995932739,1.4020988,85.478,85.374,6.0]
[1645995933145,23.7767,85.486,85.375,117.0]
[1645995933146,6.0,85.461,85.375,117.0]
[1645995933334,6.0,85.461,85.391,117.0]
[1645995933535,6.0,85.461,85.395,117.0]
[1645995933736,6.0,85.461,85.396,8.61458935]
[1645995933936,6.0,85.461,85.4,13.77]
[1645995934336,6.0,85.461,85.396,2.61458935]
[1645995934537,6.0,85.461,85.394,32.56247723]
[1645995935138,6.0,85.461,85.395,5.60055555]
[1645995935343,6.0,85.461,85.396,6.0]
[1645995935539,6.0,85.461,85.4,13.77]
[1645995936144,6.0,85.461,85.394,32.56247723]
[1645995936940,6.0,85.461,85.395,128.03119777]
[1645995937141,6.0,85.461,85.395,125.74678921]
[1645995937342,6.0,85.506,85.396,5.16391557]
[1645995937543,6.0,85.506,85.41,13.77]
[1645995937742,6.0,85.506,85.412,31.33182352]
[1645995937945,6.0,85.506,85.413,6.0]
[1645995938141,6.0,85.506,85.413,8.487162]
[1645995938342,61.79256684,85.507,85.413,11.23395121]
[1645995938746,61.79256684,85.507,85.414,119.74678921]
[1645995938943,61.79256684,85.507,85.416,117.0]
[1645995939143,61.79256684,85.507,85.431,31.63436053]
[1645995939346,61.79256684,85.507,85.432,8.62673226]
[1645995939543,61.79256684,85.507,85.432,11.37352147]
[1645995939744,61.79256684,85.507,85.432,8.62673226]
[1645995940044,17.5599,85.54,85.431,31.63436053]
[1645995940249,2.74678921,85.535,85.431,31.63436053]
[1645995940450,1.50244231,85.533,85.431,31.63436053]
[1645995940648,1.79374594,85.531,85.431,31.63436053]
[1645995940847,1.75610044,85.529,85.431,31.63436053]
[1645995941049,1.61222098,85.527,85.431,31.63436053]
[1645995941247,1.61222098,85.527,85.43,13.77]
[1645995941248,117.0,85.519,85.41,13.77]
[1645995941448,1.83111962,85.516,85.4,13.77]
[1645995941647,6.0,85.515,85.384,2.74678921]
[1645995941846,6.0,85.515,85.39,13.77]
[1645995942046,77.06832915,85.509,85.391,2.35955642]
[1645995942248,6.0,85.508,85.392,35.89008851]
[1645995942446,17.5684,85.5,85.393,8.65353149]
[1645995942646,7.69189386,85.499,85.393,8.65353149]
[1645995942846,7.69189386,85.499,85.394,2.74678921]
[1645995943248,6.0,85.499,85.394,2.74678921]
[1645995943446,7.81322231,85.507,85.394,2.74678921]
[1645995943648,7.81322231,85.507,85.395,6.0]
[1645995943848,6.0,85.506,85.394,2.74678921]
[1645995944047,6.0,85.506,85.396,2.74678921]
[1645995944247,6.0,85.506,85.41,13.77]
[1645995944447,6.0,85.506,85.412,32.84612392]
[1645995944647,77.06832915,85.509,85.413,6.0]
[1645995944847,1.64990041,85.508,85.413,6.0]
[1645995945048,1.64990041,85.508,85.413,8.74678921]
[1645995945248,1.64990041,85.508,85.414,2.74678921]
[1645995945472,1.64990041,85.508,85.415,6.0]
[1645995945651,1.64990041,85.508,85.42,13.77]
[1645995945850,77.06832915,85.509,85.42,2.6361694]
[1645995946057,1.86980855,85.506,85.4,13.77]
[1645995946251,3.25,85.478,85.299,70.9219]
[1645995946454,3.25,85.458,85.299,70.9219]
[1645995946651,3.25,85.458,85.3,13.77]
[1645995946852,117.0,85.456,85.3,30.27146636]
[1645995947053,17.5882,85.39,85.3,30.27146636]
[1645995947252,7.69486849,85.389,85.3,30.27146636]
[1645995947452,1.60385455,85.388,85.3,30.27146636]
[1645995947653,6.0,85.387,85.301,117.0]
[1645995947853,6.0,85.422,85.301,117.0]
[1645995948256,79.73210241,85.415,85.301,117.0]
[1645995948453,17.5845,85.41,85.3,30.27146636]
[1645995948655,8.06313296,85.409,85.301,117.0]
[1645995948854,8.06313296,85.409,85.3,30.27146636]
[1645995949054,6.0,85.409,85.3,30.27146636]
[1645995949258,6.0,85.413,85.3,30.27146636]
[1645995949457,6.0,85.413,85.302,117.0]
[1645995949657,6.0,85.413,85.304,117.0]
[1645995949858,6.0,85.413,85.306,117.0]
[1645995950057,6.0,85.413,85.308,117.0]
[1645995950259,6.0,85.413,85.31,130.77]